bitfinex/quotes_ETHUSD_20251120
["timestamp","ask_amount","ask_price","bid_price","bid_amount"]
[1763647871959,3.82484004,2974.3,2972.7,7.19866455]
[1763647872134,3.82484004,2974.3,2972.2,7.19866455]
[1763647872135,5.674846,2974.1,2972.2,7.19866455]
[1763647872316,0.124,2974.2,2971.7,7.19866455]
[1763647872317,9.437966,2974.0,2971.7,7.19866455]
[1763647872516,2.590031,2974.0,2971.8,1.05638352]
[1763647872723,0.4627,2973.9,2971.8,1.96337616]
[1763647872934,0.4627,2973.9,2971.9,5.98508679]
[1763647873242,2.099909,2973.8,2972.0,0.90699264]
[1763647873442,0.4627,2973.9,2972.4,5.98508679]
[1763647873630,0.124,2974.2,2972.4,9.349297]
[1763647873631,0.4627,2973.8,2972.4,9.349297]
[1763647874033,0.4627,2973.8,2972.0,0.90699264]
[1763647874034,0.1904,2972.5,2972.0,0.90699264]
[1763647874237,0.1904,2972.5,2972.0,0.74445264]
[1763647874238,0.124,2972.4,2972.0,0.74445264]
[1763647874606,0.4627,2972.3,2971.6,5.98508679]
[1763647874940,0.124,2972.4,2972.1,5.98508679]
[1763647875147,0.124,2972.4,2970.6,13.4652932]
[1763647875148,0.4627,2972.3,2971.1,5.98508679]
[1763647875354,0.4627,2972.3,2971.1,6.58359547]
[1763647875647,0.124,2972.2,2971.1,5.98508679]
[1763647875947,3.36292709,2973.6,2971.6,5.98508679]
[1763647876156,3.36292709,2973.6,2971.1,3.36574208]
[1763647876157,0.405504,2973.4,2972.1,5.98508679]
[1763647876358,0.405504,2973.4,2971.7,5.98508679]
[1763647876864,0.405504,2973.4,2971.7,6.58359547]
[1763647877016,2.40734,2973.3,2971.7,6.58359547]
[1763647877222,0.124,2973.5,2971.7,6.58359547]
[1763647877543,3.36337952,2973.2,2971.8,3.36496399]
[1763647877743,4.23138502,2973.4,2971.8,3.36496399]
[1763647878074,3.3621107,2974.4,2972.2,5.98508679]
[1763647878075,0.4627,2973.3,2972.2,5.98508679]
[1763647878226,0.5867,2973.3,2972.2,5.98508679]
[1763647878426,0.5867,2973.3,2971.1,0.90699264]
[1763647878665,0.868204,2973.2,2971.9,5.98508679]
[1763647878951,0.868204,2973.2,2972.4,5.98508679]
[1763647878952,0.4627,2973.2,2972.4,5.98508679]
[1763647879161,0.0420281,2974.2,2972.9,5.98508679]
[1763647879461,0.1904,2973.0,2972.5,0.59850868]
[1763647879669,0.1904,2973.0,2972.4,5.98508679]
[1763647879959,0.4627,2972.9,2972.4,5.98508679]
[1763647880123,0.123,2972.8,2972.4,5.98508679]
[1763647880457,0.4627,2973.5,2972.4,5.98508679]
[1763647880643,0.123,2973.4,2972.4,5.98508679]
[1763647880843,0.123,2973.3,2972.9,5.98508679]
[1763647881367,0.123,2973.3,2971.5,3.36522676]
[1763647881368,0.04204224,2973.2,2971.3,0.4591]
[1763647881665,0.5857,2973.3,2972.3,5.98508679]
[1763647881666,0.123,2973.3,2972.3,5.98508679]
[1763647881864,0.1904,2973.7,2971.8,11.00182217]
[1763647881865,0.1904,2973.7,2972.8,5.98508679]
[1763647882029,0.1904,2973.7,2972.9,0.59850868]
[1763647882226,0.1904,2974.1,2972.9,0.59850868]
[1763647882453,0.123,2974.0,2972.9,0.59850868]
[1763647882666,0.123,2974.0,2973.3,5.98508679]
[1763647882839,0.5857,2974.0,2973.3,5.98508679]
[1763647883219,0.04203234,2973.9,2973.3,5.98508679]
[1763647883456,0.4627,2973.9,2973.3,5.98508679]
[1763647884339,0.4627,2973.9,2972.8,3.36373391]
[1763647884340,3.8673263,2973.9,2972.8,5.98508679]
[1763647884545,3.8673263,2973.9,2972.9,0.68920794]
[1763647884546,0.4627,2973.9,2972.9,0.68920794]
[1763647884885,0.123,2974.0,2973.3,5.98508679]
[1763647885081,0.123,2974.0,2973.4,5.98508679]
[1763647885236,0.002,2973.9,2973.4,5.98508679]
[1763647885864,0.002,2973.9,2973.2,3.36335763]
[1763647885865,0.002,2973.9,2973.2,5.98508679]
[1763647886268,0.04403234,2973.9,2973.2,5.98508679]
[1763647886570,0.002,2973.9,2973.2,5.98508679]
[1763647886788,0.04403234,2973.9,2973.2,0.68920794]
[1763647886995,0.002,2973.9,2973.2,0.68920794]
[1763647887348,0.002,2973.9,2973.5,5.98508679]
[1763647887473,0.123,2974.4,2973.8,0.1542]
[1763647887787,0.123,2974.4,2974.3,5.98508679]
[1763647887961,0.123,2974.4,2973.8,5.98508679]
[1763647888281,0.123,2974.4,2973.8,9.34778287]
[1763647888451,0.123,2974.4,2973.8,9.94629155]
[1763647889352,0.123,2974.4,2973.8,9.94626596]
[1763647889554,0.123,2974.4,2974.3,5.98508679]
[1763647889783,0.002,2975.2,2974.4,0.90699264]
[1763647889784,0.123,2974.8,2974.4,0.90699264]
[1763647890086,0.123,2974.8,2974.3,0.90699264]
[1763647890447,0.4848,2974.7,2973.8,0.59850868]
[1763647890653,0.123,2974.8,2973.9,5.98508679]
[1763647890950,0.123,2974.7,2974.4,5.98508679]
[1763647891260,0.123,2974.7,2973.5,3.82044018]
[1763647891261,0.123,2974.7,2973.9,5.98508679]
[1763647891601,0.123,2974.7,2974.4,5.98508679]
[1763647891756,3.84795545,2975.2,2974.4,5.98508679]
[1763647891954,0.123,2974.6,2974.4,5.98508679]
[1763647893078,0.6078,2974.5,2973.3,0.1542]
[1763647893383,10.08546635,2975.2,2973.3,0.1542]
[1763647893384,0.123,2974.4,2974.2,5.98508679]
[1763647893757,0.4848,2975.1,2974.2,5.98508679]
[1763647893952,0.002,2975.2,2974.2,5.98508679]
[1763647893953,0.002,2975.2,2974.7,5.98508679]
[1763647894154,0.123,2975.1,2974.7,5.98508679]
[1763647894907,0.0420168,2975.0,2974.2,5.98508679]
[1763647895089,0.6078,2975.1,2974.1,5.98508679]
[1763647895401,0.123,2975.1,2974.1,5.98508679]
[1763647895553,0.6078,2975.1,2974.1,5.98508679]
[1763647895979,0.123,2975.1,2974.6,5.98508679]
[1763647896195,0.1222,2975.1,2974.6,5.98508679]
[1763647896358,0.4848,2975.0,2974.1,5.98508679]
[1763647898066,3.48345494,2975.1,2974.1,5.98508679]
[1763647898272,0.10176513,2975.1,2974.1,5.98508679]
[1763647898789,0.122,2975.0,2974.6,5.98508679]
[1763647898994,0.002,2975.2,2974.6,5.98508679]
[1763647899168,0.122,2975.1,2974.6,5.98508679]
[1763647899956,0.002,2975.2,2974.7,0.90699264]
[1763647900165,0.002,2975.2,2975.1,5.98508679]
[1763647900362,0.002,2975.2,2975.1,6.58359547]
[1763647901411,0.002,2975.2,2975.1,7.95388811]
[1763647901716,0.479,2976.5,2975.7,5.98508679]
[1763647901915,0.191,2976.7,2975.8,6.72088176]
[1763647902075,0.122,2976.6,2976.3,5.98508679]
[1763647902283,0.122,2976.6,2975.8,5.98508679]
[1763647902495,0.52099563,2976.5,2975.4,5.98508679]
[1763647902802,0.479,2976.5,2975.4,5.98508679]
[1763647903176,0.04199704,2976.4,2975.4,5.98508679]
[1763647903514,0.479,2976.5,2974.9,5.98508679]
[1763647903801,6.72020428,2976.1,2974.5,5.98508679]
[1763647903980,6.72020428,2976.1,2974.5,6.59908547]
[1763647904183,0.479,2976.0,2975.0,5.98508679]
[1763647904605,0.52718461,2976.2,2975.0,5.98508679]
[1763647904606,0.122,2975.9,2975.0,5.98508679]
[1763647904780,0.191,2976.7,2974.6,1.37029264]
[1763647904781,0.191,2976.7,2975.8,5.98508679]
[1763647904980,0.124,2976.6,2975.9,0.90699264]
[1763647905171,0.124,2976.6,2975.9,0.68920794]
[1763647905374,0.124,2976.6,2976.0,0.90699264]
[1763647905901,0.122,2976.5,2976.0,0.90699264]
[1763647906099,0.122,2976.5,2976.0,4.26717544]
[1763647906506,0.479,2977.1,2976.0,4.26717544]
[1763647906670,0.122,2977.0,2976.0,0.90699264]
[1763647907103,0.191,2976.9,2976.0,0.90699264]
[1763647907308,0.601,2977.0,2976.0,5.25145434]
[1763647907309,0.122,2977.0,2976.0,5.25145434]
[1763647907506,6.71614224,2977.9,2976.5,5.98508679]
[1763647907673,0.479,2977.3,2976.5,5.98508679]
[1763647908008,0.122,2977.2,2976.5,9.34464178]
[1763647908370,0.52690708,2977.7,2976.5,9.34464178]
[1763647908371,0.04175813,2977.6,2976.5,9.34464178]
[1763647908601,0.122,2977.5,2976.6,0.93446418]
[1763647908803,0.52690708,2977.7,2976.6,0.93446418]
[1763647908804,0.122,2977.4,2976.6,0.93446418]
[1763647909704,0.122,2977.4,2976.6,1.84145682]
[1763647909878,0.129349,2978.0,2977.0,5.98508679]
[1763647909879,0.122,2977.3,2977.0,5.98508679]
[1763647911604,0.122,2977.3,2977.0,9.81067063]
[1763647911805,0.122,2977.3,2977.0,5.98508679]
[1763647912190,0.479,2977.7,2977.0,5.98508679]
[1763647912394,0.122,2977.6,2976.7,5.98508679]
[1763647912580,0.122,2977.5,2976.8,1.29843808]
[1763647912903,0.608349,2978.0,2976.8,1.29843808]
[1763647913107,0.16375813,2977.9,2976.8,1.29843808]
[1763647913407,0.608349,2978.0,2977.2,5.98508679]
[1763647913613,0.122,2977.8,2977.2,5.98508679]
[1763647914228,0.479,2977.7,2977.2,5.98508679]
[1763647914409,0.479,2977.7,2976.1,9.54203175]
[1763647914719,0.479,2977.7,2976.1,10.87890747]
[1763647914940,0.121,2977.6,2977.0,6.8772691]
[1763647915075,0.121,2977.6,2976.6,6.8772691]
[1763647915277,0.479,2977.5,2976.6,6.8772691]
[1763647916213,3.83756202,2977.5,2976.6,6.8772691]
[1763647916439,0.479,2977.5,2976.6,6.8772691]
[1763647916587,0.479,2977.4,2976.6,6.8772691]
[1763647916913,0.52075813,2977.4,2976.6,6.8772691]
[1763647917079,0.479,2977.4,2976.1,1.10389264]
[1763647917745,0.479,2977.4,2976.4,6.8772691]
[1763647918302,3.83765588,2977.4,2976.4,6.8772691]
[1763647918502,3.83765469,2977.4,2976.4,6.8772691]
[1763647918719,0.479,2977.3,2976.4,6.8772691]
[1763647919909,0.121,2977.6,2976.4,10.23701095]
[1763647920205,0.121,2977.5,2976.9,3.35919916]
[1763647920401,0.0004,2978.2,2977.2,6.8772691]
[1763647920627,0.16275813,2977.9,2976.8,6.8772691]
[1763647920905,0.16275813,2977.9,2975.8,0.1542]
[1763647920906,0.121,2977.9,2976.4,0.90699264]
[1763647921340,0.16275813,2977.8,2977.1,6.8772691]
[1763647921540,0.121,2977.8,2976.7,6.8772691]
[1763647921707,0.121,2977.8,2976.7,7.61165601]
[1763647922035,0.121,2977.8,2976.8,0.90699264]
[1763647922334,0.121,2977.8,2976.3,13.43944868]
[1763647922335,0.479,2977.7,2976.3,6.8772691]
[1763647922503,0.121,2977.6,2976.7,6.8772691]
[1763647922702,0.479,2977.5,2976.7,6.8772691]
[1763647922912,0.52075813,2977.5,2976.7,6.8772691]
[1763647923112,0.479,2977.5,2977.0,0.001]
[1763647923513,0.52075813,2977.5,2977.0,0.001]
[1763647923705,0.479,2977.5,2977.0,0.001]
[1763647924639,0.56826213,2977.4,2976.7,0.001]
[1763647924831,0.56826213,2977.4,2974.9,3.5583453]
[1763647924832,2.552004,2976.7,2974.9,3.5583453]
[1763647925034,0.191,2976.8,2975.2,6.8772691]
[1763647925205,0.191,2976.8,2975.6,6.8772691]
[1763647925408,0.191,2976.8,2975.7,0.90699264]
[1763647925409,0.121,2976.7,2975.7,0.90699264]
[1763647925643,0.121,2976.7,2975.4,0.4666]
[1763647925644,0.6,2976.7,2975.4,0.4666]
[1763647925847,0.6,2976.7,2975.4,1.20098691]
[1763647926018,0.191,2976.8,2975.7,0.90699264]
[1763647926216,0.121,2976.7,2975.7,0.90699264]
[1763647926526,0.121,2976.6,2976.0,0.90699264]
[1763647926845,0.121,2976.6,2976.0,6.8772691]
[1763647927017,0.121,2976.6,2976.1,0.1969]
[1763647927540,0.121,2976.5,2976.2,0.4666]
[1763647928438,0.121,2976.5,2976.2,3.35998924]
[1763647928644,0.121,2976.5,2976.1,1.10389264]
[1763647928815,0.121,2976.5,2976.1,4.46396417]
[1763647929024,0.121,2976.5,2976.2,0.4619]
[1763647929205,0.121,2976.5,2976.1,4.46396417]
[1763647929411,0.121,2976.5,2976.2,0.4619]
[1763647929850,0.4544,2977.7,2976.4,6.8772691]
[1763647930019,0.121,2977.6,2976.5,0.90699264]
[1763647930222,0.04175813,2977.5,2976.5,0.90699264]
[1763647930420,3.35863505,2977.4,2976.1,1.6670342]
[1763647930632,3.35863505,2977.4,2976.1,1.10389264]
[1763647930812,0.4544,2977.3,2976.1,4.46390512]
[1763647931008,0.04175813,2977.2,2976.1,0.1969]
[1763647931214,0.04175813,2977.2,2975.8,6.8772691]
[1763647931215,0.1871,2976.2,2975.2,6.8772691]
[1763647931438,0.121,2976.1,2975.7,0.90699264]
[1763647931637,0.121,2976.2,2975.7,0.90699264]
[1763647931834,0.4544,2977.1,2975.7,0.90699264]
[1763647932043,0.49615813,2977.1,2975.7,0.90699264]
[1763647932243,0.121,2977.0,2975.7,0.90699264]
[1763647932447,6.71839832,2976.9,2975.2,6.8772691]
[1763647932655,0.4544,2976.8,2975.2,6.8772691]
[1763647932955,0.4544,2976.8,2975.3,0.90699264]
[1763647933353,0.4544,2976.8,2975.2,0.68772691]
[1763647933651,0.405504,2976.7,2974.9,3.55835718]
[1763647933852,0.4544,2976.6,2974.9,4.02025718]
[1763647934016,0.121,2976.5,2975.0,8.56931727]
[1763647934221,0.121,2976.4,2975.1,1.5489132]
[1763647934554,1.46365798,2977.2,2975.3,0.90699264]
[1763647934555,0.4544,2976.5,2975.3,0.90699264]
[1763647934736,0.121,2976.3,2975.2,3.36111858]
[1763647934915,0.121,2976.3,2975.2,0.90699264]
[1763647935113,0.5754,2976.3,2975.1,0.90699264]
[1763647935350,0.5754,2976.3,2974.9,0.1969]
[1763647935649,0.121,2976.3,2975.0,8.60293071]
[1763647935825,0.121,2976.2,2975.1,1.55227458]
[1763647936211,0.5754,2976.2,2975.1,1.55227458]
[1763647936652,0.5754,2976.2,2975.2,0.90699264]
[1763647937347,0.121,2976.2,2975.2,1.36889264]
[1763647937524,0.121,2976.2,2975.2,0.4619]
[1763647938448,0.5754,2976.2,2975.1,2.45926722]
[1763647938760,7.29540656,2976.2,2974.9,0.1969]
[1763647939057,7.29540656,2976.2,2974.6,0.90699264]
[1763647939058,0.4544,2976.1,2974.6,6.72359308]
[1763647939348,0.4544,2976.1,2974.7,0.90699264]
[1763647940575,3.36021505,2976.0,2974.9,0.90699264]
[1763647940783,3.36021505,2976.0,2973.9,1.78178895]
[1763647940784,0.1871,2975.0,2973.9,1.78178895]
[1763647940958,0.1871,2974.8,2974.2,0.1686]
[1763647941164,0.121,2974.7,2974.6,0.001]
[1763647946331,0.121,2974.7,2974.6,0.4815]
[1763647946537,0.121,2975.2,2974.6,0.4815]
[1763647946686,0.121,2975.1,2974.6,0.9434]
[1763647947089,0.121,2975.1,2974.6,4.30517526]
[1763647947301,0.121,2975.1,2974.6,0.4815]
[1763647947501,0.121,2975.1,2974.6,0.001]
[1763647947502,0.1871,2974.7,2974.6,0.001]
[1763647947699,0.6373,2974.7,2974.6,0.001]
[1763647948022,1.0917,2974.7,2974.6,0.001]
[1763647948526,0.1871,2975.0,2974.6,0.001]
[1763647948823,0.121,2974.9,2974.6,0.001]
[1763647949610,0.1835,2975.2,2974.6,0.001]
[1763647949819,0.121,2975.1,2974.6,0.001]
[1763647950607,0.603,2975.1,2974.6,0.001]
[1763647951227,0.121,2975.1,2974.6,0.001]
[1763647951529,0.603,2975.1,2974.6,0.001]
[1763647951732,0.121,2975.0,2974.6,0.001]
[1763647952627,0.4715,2974.7,2974.6,0.001]
[1763647952934,0.121,2975.0,2974.6,0.001]
[1763647953148,0.52375813,2974.9,2974.6,0.001]
[1763647953315,0.04175813,2974.8,2974.6,0.001]
[1763647954239,0.9535,2974.7,2974.6,0.001]
[1763647954831,0.121,2975.0,2974.6,0.001]
[1763647955217,0.4715,2974.7,2974.6,0.001]
[1763647955602,0.121,2975.0,2974.6,0.001]
[1763647956124,0.603,2975.0,2974.6,0.001]
[1763647956809,0.4715,2974.7,2974.6,0.001]
[1763647958538,0.482,2974.9,2974.6,0.001]
[1763647958714,0.121,2975.0,2974.6,0.001]
[1763647958948,0.5808,2975.0,2974.6,0.001]
[1763647959472,0.121,2975.0,2974.6,0.001]
[1763647960050,0.5808,2975.0,2974.6,0.001]
[1763647960370,0.121,2975.0,2974.6,0.001]
[1763647960571,0.4989,2974.7,2974.6,0.001]
[1763647960966,0.4598,2974.9,2974.6,0.001]
[1763647961469,0.4989,2974.7,2974.6,0.001]
[1763647961868,0.9587,2974.7,2974.6,0.001]
[1763647962052,0.121,2974.7,2974.6,0.001]
[1763647964676,0.121,2974.7,2974.6,0.4947]
[1763647965047,0.121,2974.7,2974.6,0.001]
[1763647966467,0.52731486,2975.0,2974.6,0.001]
[1763647966685,0.121,2974.7,2974.6,0.001]
[1763647966884,3.36080766,2975.5,2974.9,0.4937]
[1763647967075,0.52723877,2975.3,2974.6,0.4947]
[1763647967269,0.121,2975.2,2974.6,0.001]
[1763647967870,0.4598,2975.1,2974.6,0.001]
[1763647968169,0.459,2975.1,2974.6,0.001]
[1763647968673,0.04175813,2975.0,2974.6,0.001]
[1763647968976,3.98998353,2974.7,2974.6,0.001]
[1763647969181,4.11098353,2974.7,2974.6,0.001]
[1763647970383,4.57078353,2974.7,2974.6,0.001]
[1763647970764,4.69425141,2975.2,2974.6,0.001]
[1763647970765,0.1812,2975.0,2974.6,0.001]
[1763647970963,0.121,2974.9,2974.6,0.001]
[1763647971286,0.121,2974.8,2974.6,0.001]
[1763647972864,0.121,2974.8,2974.7,0.9529]
[1763647973279,3.36053932,2975.8,2974.7,0.9529]
[1763647973280,0.4598,2975.8,2974.7,0.9529]
[1763647973463,0.16275813,2975.7,2974.7,1.13908926]
[1763647973652,0.04175813,2975.7,2974.7,1.13908926]
[1763647973865,0.121,2975.6,2974.8,1.36619264]
[1763647974396,1.72487535,2977.1,2976.3,0.2174]
[1763647974691,0.3022,2977.9,2976.8,0.90699264]
[1763647974890,0.3022,2977.9,2977.0,0.90699264]
[1763647975090,0.3022,2977.9,2977.1,1.96987676]
[1763647975091,0.4598,2977.8,2977.1,1.96987676]
[1763647975290,3.52443857,2977.8,2976.4,0.90699264]
[1763647975496,0.4598,2977.8,2976.4,0.90699264]
[1763647975791,0.4598,2977.8,2976.4,1.8135513]
[1763647975991,0.4598,2977.8,2976.4,0.90699264]
[1763647976165,0.4598,2977.8,2976.4,1.42433466]
[1763647976370,0.4598,2977.8,2976.4,8.62475929]
[1763647977095,3.35829667,2977.7,2976.4,8.62475929]
[1763647977632,0.4598,2977.6,2976.4,8.62475929]
[1763647977900,0.4598,2977.6,2976.4,8.10741727]
[1763647979209,0.4598,2977.6,2976.4,11.46715491]
[1763647979388,0.4598,2977.6,2976.4,14.82691838]
[1763647980100,0.52687345,2977.7,2976.4,14.82691838]
[1763647980302,0.1812,2977.8,2976.9,7.20042463]
[1763647980486,0.4598,2977.7,2976.4,4.26673028]
[1763647980803,0.4598,2977.7,2976.5,1.66965233]
[1763647981302,6.7168189,2977.6,2976.3,0.90699264]
[1763647981508,6.7168189,2977.6,2976.1,0.90699264]
[1763647981724,3.53943192,2977.8,2975.9,10.56073104]
[1763647981725,0.4598,2977.5,2975.9,13.921059]
[1763647982010,0.1812,2977.8,2975.9,13.921059]
[1763647982012,0.121,2977.4,2976.5,0.90699264]
[1763647982375,0.121,2977.4,2976.5,1.53232817]
[1763647982609,0.121,2977.4,2977.0,0.90699264]
[1763647983019,0.002,2978.0,2977.0,0.90699264]
[1763647983316,0.002,2978.0,2977.8,0.90699264]
[1763647984326,0.002,2978.0,2977.1,0.405504]
[1763647984501,0.002,2978.0,2977.5,0.90699264]
[1763647984703,0.002,2978.0,2977.6,0.81074173]
[1763647984903,0.002,2978.0,2977.5,0.90699264]
[1763647985293,0.002,2978.0,2977.6,3.35840945]
[1763647985516,0.002,2978.0,2977.5,4.26547592]
[1763647985831,0.641,2977.9,2977.5,0.90699264]
[1763647985992,0.641,2977.9,2976.9,3.35918264]
[1763647985993,0.121,2977.8,2976.9,7.20042463]
[1763647986192,0.121,2977.8,2977.0,0.72004246]
[1763647986399,0.121,2977.8,2977.0,1.6270351]
[1763647986828,0.121,2977.7,2977.5,0.90699264]
[1763647987431,0.121,2977.6,2977.4,7.20042463]
[1763647987638,0.1812,2977.9,2977.1,8.10741727]
[1763647987790,0.121,2977.8,2977.2,0.88274597]
[1763647988601,0.002,2978.0,2977.2,0.88274597]
[1763647988809,0.121,2977.9,2977.6,7.20042463]
[1763647989208,0.002,2978.0,2977.6,7.20042463]
[1763647989408,0.121,2977.9,2977.6,7.20042463]
[1763647989589,0.121,2977.9,2977.6,8.25631399]
[1763647989794,0.002,2978.0,2977.6,8.25631399]
[1763647990091,0.002,2978.0,2977.7,0.90699264]
[1763647990416,0.123,2978.0,2977.7,0.90163435]
[1763647990603,0.123,2978.0,2977.1,3.35891047]
[1763647990604,0.1935,2977.9,2977.1,7.20042463]
[1763647990809,0.7668,2977.9,2977.1,11.31997711]
[1763647991330,0.121,2977.9,2977.1,11.31997711]
[1763647991528,0.1935,2977.9,2977.1,11.31997711]
[1763647991899,0.121,2977.8,2977.1,7.96101749]
[1763647992321,0.1202,2977.8,2977.1,11.31998015]
[1763647992512,0.1202,2977.8,2977.2,2.37489869]
[1763647992808,0.1202,2977.8,2976.9,0.90699264]
[1763647993426,0.1202,2977.8,2977.1,0.90699264]
[1763647993610,0.002,2978.0,2977.1,0.90699264]
[1763647993820,0.121,2977.7,2977.1,0.90699264]
[1763647994018,0.002,2978.0,2977.4,0.90699264]
[1763647994334,0.121,2977.6,2977.4,0.90699264]
[1763647994899,0.121,2977.6,2977.5,0.90699264]
[1763647995903,0.121,2977.6,2977.5,4.26551489]
[1763647996134,0.002,2978.0,2977.5,2.35671839]
[1763647996338,0.121,2977.7,2977.5,5.71520606]
[1763647996634,0.002,2978.0,2977.7,0.90699264]
[1763647996832,0.123,2978.0,2977.7,0.90699264]
[1763647997336,0.1935,2977.9,2977.7,0.90699264]
[1763647997843,0.6458,2977.9,2977.3,0.90699264]
[1763647998209,0.002,2978.0,2977.7,0.90699264]
[1763647998616,0.121,2977.9,2977.3,0.90699264]
[1763647998812,0.121,2977.9,2977.2,6.71762645]
[1763647998813,0.121,2977.9,2977.6,0.90699264]
[1763647999840,0.4891,2977.7,2977.6,0.90699264]
[1763648000018,0.3145,2977.9,2976.9,0.90699264]
[1763648000236,0.3145,2977.9,2977.3,0.90699264]
[1763648000406,0.4523,2977.8,2976.9,0.90699264]
[1763648000600,0.4523,2977.8,2976.9,2.02092641]
[1763648000804,0.121,2977.7,2977.3,0.90699264]
[1763648001337,0.5733,2977.7,2977.3,0.90699264]
[1763648001634,0.121,2977.7,2977.3,0.90699264]
[1763648001802,0.121,2977.6,2977.3,4.26572544]
[1763648002239,0.002,2978.0,2977.3,9.07425255]
[1763648002438,0.4891,2977.4,2976.6,6.87307864]
[1763648002650,0.1935,2977.7,2976.7,0.90699264]
[1763648002651,0.4891,2977.3,2976.7,0.90699264]
[1763648002804,0.121,2977.2,2976.7,0.90699264]
[1763648003112,0.121,2977.2,2976.7,2.35700558]
[1763648004143,0.121,2977.2,2976.7,5.71635504]
[1763648005637,0.121,2977.2,2976.7,9.0757799]
[1763648005838,0.4523,2977.6,2976.7,5.71635504]
[1763648006037,0.121,2977.5,2976.7,9.0757799]
[1763648006206,0.4523,2977.6,2976.8,1.68554172]
[1763648006411,0.121,2977.5,2976.8,1.68554172]
[1763648006635,0.121,2977.5,2976.7,4.26635858]
[1763648006937,0.5733,2977.5,2976.7,4.26638378]
[1763648007438,0.4523,2977.4,2976.7,4.26638378]
[1763648007870,0.4523,2977.4,2976.7,7.62580864]
[1763648008068,0.4523,2977.4,2976.8,1.54054459]
[1763648008367,0.4523,2977.4,2976.8,4.89984892]
[1763648008536,0.121,2977.5,2976.8,4.89984892]
[1763648008860,0.121,2977.4,2976.8,4.89984892]
[1763648009555,0.121,2977.3,2977.1,0.90699264]
[1763648010461,0.5986,2977.3,2976.8,4.89982331]
[1763648010868,0.5986,2977.3,2976.8,1.54054459]
[1763648011038,0.121,2977.3,2976.9,0.58069082]
[1763648011243,0.4776,2977.3,2976.9,0.58069082]
[1763648011649,0.121,2977.2,2976.9,0.58069082]
[1763648012463,0.121,2977.2,2977.0,0.90699264]
[1763648012884,0.121,2977.1,2977.0,0.90699264]
[1763648014771,0.121,2977.1,2977.0,8.50946949]
[1763648015508,0.121,2977.1,2976.8,4.26585373]
[1763648015678,0.121,2977.1,2976.6,0.90655866]
[1763648015679,0.5986,2977.1,2976.6,0.90655866]
[1763648015878,0.5986,2977.1,2976.5,5.17412385]
[1763648016091,0.5978,2977.1,2976.5,5.17412385]
[1763648016291,0.5978,2977.1,2976.5,0.90799264]
[1763648016714,0.5978,2977.1,2976.5,4.26763507]
[1763648017102,0.5978,2977.1,2976.5,0.90799264]
[1763648017302,0.5978,2977.1,2977.0,0.001]
[1763648017678,1.0747,2977.1,2977.0,0.001]
[1763648018107,0.1935,2977.7,2977.0,0.001]
[1763648018108,0.4776,2977.5,2977.0,0.001]
[1763648018417,0.121,2977.4,2977.0,0.001]
[1763648018925,0.4942,2977.4,2977.0,0.001]
[1763648019083,0.121,2977.3,2977.0,0.001]
[1763648019716,0.6877,2977.7,2977.0,0.001]
[1763648019915,0.121,2977.2,2977.0,0.001]
[1763648020524,0.4682,2977.1,2977.0,0.001]
[1763648021017,0.9624,2977.1,2977.0,0.001]
[1763648021219,0.4682,2977.1,2977.0,0.001]
[1763648021390,0.121,2977.2,2977.0,0.001]
[1763648021590,0.4682,2977.1,2977.0,0.001]
[1763648021992,0.9624,2977.1,2977.0,0.001]
[1763648023020,4.32137349,2977.1,2976.5,0.001]
[1763648023219,0.6511,2976.6,2976.5,0.001]
[1763648023425,0.7721,2976.6,2976.5,0.001]
[1763648023742,1.2663,2976.6,2976.5,0.001]
[1763648025515,4.62583772,2976.6,2976.5,0.001]
[1763648027055,11.34491316,2976.6,2976.0,0.001]
[1763648027213,0.4682,2976.1,2976.0,0.001]
[1763648027547,1.0824,2976.1,2976.0,0.001]
[1763648029313,4.44250214,2976.1,2976.0,0.001]
[1763648029629,0.12,2976.1,2976.0,0.001]
[1763648029836,0.5882,2976.1,2976.0,0.001]
[1763648030029,1.0824,2976.1,2976.0,0.001]
[1763648031040,7.80260428,2976.1,2974.6,0.001]
[1763648031239,0.1829,2975.1,2974.6,0.001]
[1763648031440,0.12,2975.0,2974.6,0.001]
[1763648031671,0.6142,2975.0,2974.6,0.001]
[1763648032640,0.4942,2975.0,2974.6,0.001]
[1763648032852,0.1829,2975.1,2974.6,0.001]
[1763648033057,0.12,2975.0,2974.6,0.001]
[1763648033658,0.6142,2975.0,2974.6,0.001]
[1763648037889,0.4682,2974.7,2974.6,0.001]
[1763648038394,0.9624,2974.7,2974.6,0.001]
[1763648039984,0.12,2974.7,2974.6,0.001]
[1763648040190,0.1192,2974.7,2974.6,0.001]
[1763648040396,1.0816,2974.7,2974.6,0.001]
[1763648041664,0.1192,2974.7,2974.6,0.001]
[1763648041861,0.4942,2975.2,2974.6,0.0033]
[1763648042095,0.1829,2975.4,2974.6,0.0033]
[1763648042096,0.6771,2975.4,2974.6,0.0033]
[1763648042303,0.1829,2975.4,2974.6,0.0033]
[1763648042497,0.1829,2975.4,2974.6,0.001]
[1763648042498,0.6142,2975.3,2974.6,0.001]
[1763648043162,1.14142921,2975.3,2974.6,0.001]
[1763648043359,0.4682,2974.7,2974.6,0.001]
[1763648043573,0.5882,2974.7,2974.6,0.001]
[1763648043778,0.5882,2974.7,2974.3,0.001]
[1763648043779,3.164119,2974.6,2974.3,0.001]
[1763648043980,0.4682,2974.4,2974.0,0.001]
[1763648044193,0.4682,2974.1,2974.0,0.001]
[1763648044575,0.9624,2974.1,2974.0,0.001]
[1763648045062,0.9624,2974.1,2973.1,0.001]